fUST/lending_fUST_20260112
["ID","MTS","AMOUNT","RATE_DAILY","PERIOD"]
[401380976,1768168251407,-4382.5499789,0.000248,2]
[401380977,1768168251417,-1472.14861214,0.000248,2]
[401380978,1768168251429,-4459.95641639,0.000248,2]
[401380979,1768168251648,-825.99471662,0.00020069,2]
[401380980,1768168251666,-215.67195005,0.00020069,2]
[401380981,1768168251675,-4720.25422682,0.00022895,2]
[401380982,1768168251685,-151.0,0.00023979,5]
[401380983,1768168251694,-151.0,0.00023979,5]
[401380984,1768168251704,-151.0,0.00023979,5]
[401380985,1768168251713,-1000.18859103,0.000248,2]
[401380986,1768168251724,-3748.56124428,0.000248,2]
[401380987,1768168251733,-800.0,0.00024829,2]
[401380988,1768168251743,-5280.75662507,0.00024832,2]
[401380989,1768168251752,-2907.00752643,0.0002487,2]
[401380990,1768168251881,-151.0,0.000188,2]
[401380991,1768168251890,-151.0,0.000197,2]
[401380992,1768168251900,-151.0,0.000206,3]
[401380993,1768168251908,-151.0,0.000214,3]
[401380994,1768168251917,-151.0,0.000223,9]
[401380995,1768168251926,-151.0,0.000231,9]
[401380996,1768168251935,-2092.99247357,0.0002487,2]
[401380997,1768168251944,-800.0,0.00024879,2]
[401380998,1768168251953,-26.73155972,0.000249,2]
[401380999,1768168251964,-2140.72190383,0.000249,2]
[401381000,1768168251973,-20080.16578191,0.000249,2]
[401381001,1768168251985,-291.53871303,0.000249,2]
[401381006,1768168804327,154.39,5e-05,2]
[401381007,1768168804893,154.39,7.1e-05,2]
[401381169,1768169404236,155.69,5e-05,2]
[401381193,1768169437932,-154.39,9.2e-05,2]
[401381194,1768169437942,-549.0,9.2e-05,2]
[401381195,1768169437951,-341.62146181,9.281e-05,2]
[401381196,1768169437961,-1200.0,9.523e-05,2]
[401381197,1768169437971,-500.0,9.524e-05,2]
[401381198,1768169437981,-500.0,9.524e-05,2]
[401381199,1768169437991,-500.0,9.524e-05,2]
[401381200,1768169438000,-500.0,9.524e-05,2]
[401381201,1768169438010,-500.0,9.524e-05,2]
[401381202,1768169438019,-500.0,9.524e-05,2]
[401381203,1768169438028,-500.0,9.524e-05,2]
[401381204,1768169438037,-500.0,9.524e-05,2]
[401381205,1768169438047,-304.7388307,9.524e-05,2]
[401381206,1768169438056,-336.90255349,9.524e-05,2]
[401381207,1768169438066,-276.49646769,9.524e-05,2]
[401381208,1768169438075,-338.56800438,9.524e-05,2]
[401381209,1768169438084,-446.51785587,9.524e-05,2]
[401381210,1768169438094,-500.0,9.524e-05,2]
[401381211,1768169438105,-500.0,9.524e-05,2]
[401381212,1768169438115,-500.0,9.524e-05,2]
[401381213,1768169438130,-300.0,9.817e-05,2]
[401381214,1768169438140,-153.91767021,9.817e-05,2]
[401381215,1768169438152,-146.08232979,9.817e-05,2]
[401381216,1768169438162,-300.0,9.817e-05,2]
[401381217,1768169438175,-300.0,9.817e-05,2]
[401381218,1768169438186,-300.0,9.817e-05,2]
[401381219,1768169438196,-300.0,9.817e-05,2]
[401381220,1768169438205,-300.0,9.817e-05,2]
[401381221,1768169438215,-300.0,9.817e-05,2]
[401381222,1768169438225,-300.0,9.817e-05,2]
[401381223,1768169438237,-300.0,9.817e-05,2]
[401381224,1768169438246,-300.0,9.817e-05,2]
[401381225,1768169438255,-300.0,9.817e-05,2]
[401381226,1768169438265,-300.0,9.817e-05,2]
[401381227,1768169438274,-300.0,9.817e-05,2]
[401381228,1768169438287,-300.0,9.817e-05,2]
[401381229,1768169438298,-600.0,9.817e-05,2]
[401381230,1768169438307,-720.0,0.00010799,2]
[401381231,1768169438317,-151.0,0.00011,2]
[401381232,1768169438327,-403.11332493,0.00011281,2]
[401381233,1768169438337,-154.39,0.000113,2]
[401381234,1768169438347,-155.69,0.000113,2]
[401381235,1768169438357,-864.0,0.00011879,2]
[401381236,1768169438367,-151.0,0.000121,2]
[401381237,1768169438377,-500.0,0.00012329,2]
[401381238,1768169438386,-500.0,0.00012329,2]
[401381239,1768169438396,-543.88274285,0.00012329,2]
[401381240,1768169438406,-1000.0,0.00013067,2]
[401381241,1768169438415,-151.0,0.000132,2]
[401381242,1768169438425,-504.27661041,0.00013273,2]
[401381243,1768169438435,-500.0,0.00013273,2]
[401381244,1768169438444,-500.0,0.00013273,2]
[401381245,1768169438453,-502.2053155,0.00013273,2]
[401381246,1768169438462,-500.0,0.00013273,2]
[401381247,1768169438472,-500.0,0.00013273,2]
[401381248,1768169438481,-282.09902954,0.00013273,2]
[401381249,1768169438491,-500.0,0.00013273,2]
[401381250,1768169438501,-500.0,0.00013273,2]
[401381251,1768169438511,-500.0,0.00013273,2]
[401381252,1768169438521,-151.39515074,0.00013273,2]
[401381253,1768169438530,-500.0,0.00013273,2]
[401381254,1768169438539,-500.0,0.00013273,2]
[401381255,1768169438550,-488.99241758,0.00013273,2]
[401381256,1768169438559,-500.0,0.00013273,2]
[401381257,1768169438569,-500.0,0.00013273,2]
[401381258,1768169438578,-500.0,0.00013273,2]
[401381259,1768169438590,-500.0,0.00013273,2]
[401381260,1768169438600,-500.0,0.00013273,2]
[401381261,1768169438610,-500.0,0.00013273,2]
[401381262,1768169438620,-500.0,0.00013273,2]
[401381263,1768169438630,-500.0,0.00013273,2]
[401381264,1768169438640,-500.0,0.00013273,2]
[401381265,1768169438650,-500.0,0.00013273,2]
[401381266,1768169438660,-500.0,0.00013273,2]
[401381267,1768169438669,-500.0,0.00013273,2]
[401381268,1768169438679,-500.0,0.00013273,2]
[401381269,1768169438688,-506.27641738,0.00013273,2]
[401381270,1768169438698,-500.0,0.00013273,2]
[401381271,1768169438707,-500.0,0.00013273,2]
[401381272,1768169438717,-500.0,0.00013273,2]
[401381273,1768169438727,-500.0,0.00013273,2]
[401381274,1768169438736,-500.0,0.00013273,2]
[401381275,1768169438745,-500.0,0.00013273,2]
[401381276,1768169438755,-500.0,0.00013273,2]
[401381277,1768169438765,-168.36851892,0.00013273,2]
[401381278,1768169438774,-500.0,0.00013273,2]
[401381279,1768169438783,-464.60518806,0.00013281,2]
[401381280,1768169438791,-154.39,0.000134,2]
[401381281,1768169438800,-300.0,0.00013673,2]
[401381282,1768169438809,-500.0,0.00013698,2]
[401381283,1768169438818,-500.0,0.00013698,2]
[401381284,1768169438827,-605.301663,0.00013698,2]
[401381285,1768169438837,-500.0,0.00013698,2]
[401381286,1768169438846,-500.0,0.00013698,2]
[401381287,1768169438856,-447.26951081,0.00013698,2]
[401381288,1768169438865,-500.0,0.00013698,2]
[401381289,1768169438875,-500.0,0.00013698,2]
[401381290,1768169438884,-500.0,0.00013698,2]
[401381291,1768169438895,-500.0,0.00013699,2]
[401381292,1768169438904,-500.0,0.00013699,2]
[401381293,1768169438914,-488.64589349,0.00013699,2]
[401381294,1768169438923,-500.0,0.00013699,2]
[401381295,1768169438933,-602.53259662,0.00013699,2]
[401381296,1768169438942,-500.0,0.00013699,2]
[401381297,1768169438952,-413.61388111,0.00013699,2]
[401381298,1768169438962,-500.0,0.00013699,2]
[401381299,1768169438971,-500.0,0.00013699,2]
[401381300,1768169438981,-500.0,0.00013699,2]
[401381301,1768169438991,-500.0,0.00013699,2]
[401381302,1768169439001,-500.0,0.00013699,2]
[401381303,1768169439012,-500.0,0.00013699,2]
[401381304,1768169439022,-500.0,0.00013699,2]
[401381305,1768169439031,-500.0,0.00013699,2]
[401381306,1768169439041,-252.75899042,0.00013699,2]
[401381307,1768169439050,-500.0,0.00013699,2]
[401381308,1768169439060,-500.0,0.00013699,2]
[401381309,1768169439070,-500.0,0.00013699,2]
[401381310,1768169439080,-500.0,0.00013699,2]
[401381311,1768169439089,-500.0,0.00013699,2]
[401381312,1768169439099,-500.0,0.00013699,2]
[401381313,1768169439108,-500.0,0.00013699,2]
[401381314,1768169439117,-192.77974704,0.00013699,2]
[401381315,1768169439127,-500.0,0.00013699,2]
[401381316,1768169439136,-504.32249359,0.00013699,2]
[401381317,1768169439146,-500.0,0.00013699,2]
[401381318,1768169439156,-500.0,0.00013699,2]
[401381319,1768169439166,-500.0,0.00013699,2]
[401381320,1768169439175,-500.0,0.00013699,2]
[401381321,1768169439185,-500.0,0.00013699,2]
[401381322,1768169439194,-500.0,0.00013699,2]
[401381323,1768169439204,-500.0,0.00013699,2]
[401381324,1768169439214,-500.0,0.00013699,2]
[401381325,1768169439223,-500.0,0.00013699,2]
[401381326,1768169439233,-443.77041137,0.00013699,2]
[401381327,1768169439242,-35.58571271,0.00013699,2]
[401381328,1768169439255,-464.41428729,0.00013699,2]
[401381329,1768169439265,-500.0,0.00013699,2]
[401381330,1768169439275,-500.0,0.00013699,2]
[401381331,1768169439285,-500.0,0.00013699,2]
[401381332,1768169439294,-500.0,0.00013699,2]
[401381333,1768169439304,-500.0,0.00013699,2]
[401381334,1768169439314,-500.0,0.00013699,2]
[401381335,1768169439324,-500.0,0.00013699,2]
[401381336,1768169439333,-500.0,0.00013699,2]
[401381337,1768169439343,-500.0,0.00013699,2]
[401381338,1768169439352,-500.0,0.00013699,2]
[401381339,1768169439362,-500.0,0.00013699,2]
[401381340,1768169439372,-500.0,0.00013699,2]
[401381341,1768169439381,-500.0,0.00013699,2]
[401381342,1768169439391,-646.68328603,0.00013699,2]
[401381343,1768169439401,-500.0,0.00013699,2]
[401381344,1768169439411,-500.0,0.00013699,2]
[401381345,1768169439421,-500.0,0.00013699,2]
[401381346,1768169439432,-500.0,0.00013699,2]
[401381347,1768169439442,-500.0,0.00013699,2]
[401381348,1768169439452,-500.0,0.00013699,2]
[401381349,1768169439462,-638.41119879,0.00013699,2]
[401381350,1768169439472,-345.73139261,0.00013699,2]
[401381351,1768169439482,-500.0,0.00013699,2]
[401381352,1768169439491,-500.0,0.00013699,2]
[401381353,1768169439502,-500.0,0.00013699,2]
[401381354,1768169439513,-151.0,0.000138,2]
[401381355,1768169439522,-1000.0,0.00013821,2]
[401381356,1768169439532,-498.81892914,0.00013821,2]
[401381357,1768169439542,-1000.0,0.00013821,2]
[401381358,1768169439551,-1000.0,0.00013821,2]
[401381359,1768169439560,-1000.0,0.00013821,2]
[401381360,1768169439570,-1000.0,0.00013821,2]
[401381361,1768169439580,-1103.18109463,0.00013821,2]
[401381362,1768169439591,-1000.0,0.00013821,2]
[401381363,1768169439601,-1000.0,0.00013821,2]
[401381364,1768169439610,-1000.0,0.00013821,2]
[401381365,1768169439619,-1000.0,0.00013821,2]
[401381371,1768169439630,-1000.0,0.00013821,2]
[401381373,1768169439733,-1000.0,0.00013821,2]
[401381374,1768169439743,-1000.0,0.00013821,2]
[401381375,1768169439753,-1000.0,0.00013821,2]
[401381376,1768169439762,-1000.0,0.00013821,2]
[401381377,1768169439772,-1000.0,0.00013821,2]
[401381378,1768169439781,-1000.0,0.00013821,2]
[401381379,1768169439790,-1000.0,0.00013821,2]
[401381380,1768169439799,-1000.0,0.00013821,2]
[401381381,1768169439810,-1000.0,0.00013821,2]
[401381382,1768169439821,-1000.0,0.00013821,2]
[401381383,1768169439832,-1000.0,0.00013821,2]
[401381384,1768169439841,-1000.0,0.00013821,2]
[401381385,1768169439851,-1000.0,0.00013821,2]
[401381386,1768169439861,-1000.0,0.00013821,2]
[401381387,1768169439870,-501.6206004,0.00013821,2]
[401381389,1768169439880,-1000.0,0.00013821,2]
[401381390,1768169439889,-1000.0,0.00013821,2]
[401381392,1768169439899,-500.0,0.00013821,2]
[401381394,1768169439908,-600.0,0.00014221,2]
[401381396,1768169439918,-1072.392123,0.00014246,2]
[401381398,1768169439928,-500.0,0.00014246,2]
[401381400,1768169439936,-1072.392123,0.00014246,2]
[401381401,1768169439945,-1072.392123,0.00014246,2]
[401381403,1768169439955,-453.57412515,0.00014246,2]
[401381405,1768169439964,-1072.392123,0.00014246,2]
[401381407,1768169439973,-1072.392123,0.00014246,2]
[401381409,1768169439983,-1072.392123,0.00014246,2]
[401381411,1768169439991,-1072.392123,0.00014246,2]
[401381413,1768169440000,-1072.392123,0.00014246,2]
[401381414,1768169440010,-1072.392123,0.00014246,2]
[401381416,1768169440020,-1072.392123,0.00014246,2]
[401381418,1768169440029,-1072.392123,0.00014246,2]
[401381420,1768169440037,-1072.392123,0.00014246,2]
[401381422,1768169440046,-1072.392123,0.00014246,2]
[401381424,1768169440056,-1072.392123,0.00014246,2]
[401381426,1768169440065,-1072.392123,0.00014246,2]
[401381428,1768169440074,-1072.392123,0.00014246,2]
[401381430,1768169440083,-1072.392123,0.00014246,2]
[401381432,1768169440092,-1000.0,0.00014247,2]
[401381434,1768169440102,-1000.0,0.00014247,2]
[401381436,1768169440111,-500.0,0.00014247,2]
[401381438,1768169440121,-161.478767,0.00014247,2]
[401381440,1768169440130,-1002.56553603,0.00014247,2]
[401381442,1768169440140,-500.0,0.00014247,2]
[401381444,1768169440149,-1000.0,0.00014247,2]
[401381446,1768169440158,-174.14847626,0.00014247,2]
[401381448,1768169440167,-1000.0,0.00014247,2]
[401381450,1768169440177,-1000.0,0.00014247,2]
[401381452,1768169440187,-783.84380117,0.00014247,2]
[401381454,1768169440196,-1000.0,0.00014247,2]
[401381456,1768169440206,-500.0,0.00014247,2]
[401381458,1768169440215,-1000.0,0.00014247,2]
[401381460,1768169440224,-276.28275624,0.00014247,2]
[401381462,1768169440234,-1000.0,0.00014247,2]
[401381464,1768169440243,-1000.0,0.00014247,2]
[401381466,1768169440252,-1000.0,0.00014247,2]
[401381468,1768169440262,-500.0,0.00014247,2]
[401381470,1768169440271,-1000.0,0.00014247,2]
[401381471,1768169440280,-500.0,0.00014247,2]
[401381473,1768169440290,-1000.0,0.00014247,2]
[401381475,1768169440302,-1000.0,0.00014247,2]
[401381477,1768169440311,-1000.0,0.00014247,2]
[401381479,1768169440320,-1000.0,0.00014247,2]
[401381481,1768169440329,-171.67593478,0.00014247,2]
[401381483,1768169440338,-892.83683556,0.00014247,2]
[401381485,1768169440347,-1000.0,0.00014247,2]
[401381487,1768169440356,-1000.0,0.00014247,2]
[401381489,1768169440365,-1000.0,0.00014247,2]
[401381491,1768169440375,-1000.0,0.00014247,2]
[401381493,1768169440383,-500.0,0.00014247,2]
[401381495,1768169440393,-500.0,0.00014247,2]
[401381497,1768169440402,-1000.0,0.00014247,2]
[401381499,1768169440411,-505.42705469,0.00014247,2]
[401381501,1768169440420,-1000.0,0.00014247,2]
[401381503,1768169440430,-1000.0,0.00014247,2]
[401381504,1768169440439,-1000.0,0.00014247,2]
[401381506,1768169440450,-1000.0,0.00014247,2]
[401381508,1768169440460,-1000.0,0.00014247,2]
[401381510,1768169440470,-1000.0,0.00014247,2]
[401381512,1768169440480,-1000.0,0.00014247,2]
[401381514,1768169440491,-1000.0,0.00014247,2]
[401381516,1768169440501,-1000.0,0.00014247,2]
[401381518,1768169440510,-875.35271766,0.00014247,2]
[401381520,1768169440521,-1000.0,0.00014247,2]
[401381522,1768169440533,-529.61129365,0.00014247,2]
[401381524,1768169440544,-1000.0,0.00014247,2]
[401381526,1768169440554,-500.0,0.00014247,2]
[401381528,1768169440564,-1000.0,0.00014247,2]
[401381531,1768169440574,-1000.0,0.00014247,2]
[401381533,1768169440584,-1000.0,0.00014247,2]
[401381534,1768169440597,-151.0,0.000143,2]
[401381536,1768169440607,-513.35365922,0.00014368,2]
[401381538,1768169440616,-965.81779273,0.00014368,2]
[401381540,1768169440626,-670.16316784,0.00014368,2]
[401381541,1768169440636,-804.14307857,0.00014368,2]
[401381542,1768169440645,-554.02767991,0.00014368,2]
[401381543,1768169440655,-1500.0,0.00014368,2]
[401381544,1768169440664,-1500.0,0.00014368,2]
[401381545,1768169440673,-1555.48898116,0.00014368,2]
[401381546,1768169440683,-1500.0,0.00014368,2]
[401381547,1768169440692,-1500.0,0.00014368,2]
[401381548,1768169440701,-1500.0,0.00014368,2]
[401381549,1768169440710,-1500.0,0.00014368,2]
[401381550,1768169440719,-1500.0,0.00014368,2]
[401381551,1768169440729,-1500.0,0.00014368,2]
[401381552,1768169440738,-1500.0,0.00014368,2]
[401381553,1768169440747,-154.97177222,0.00014368,2]
[401381554,1768169440756,-1613.36442406,0.00014368,2]
[401381555,1768169440768,-1500.0,0.00014368,2]
[401381556,1768169440777,-1500.0,0.00014368,2]
[401381557,1768169440786,-1500.0,0.00014368,2]
[401381558,1768169440796,-1500.0,0.00014368,2]
[401381559,1768169440806,-1500.0,0.00014368,2]
[401381560,1768169440815,-1500.0,0.00014368,2]
[401381561,1768169440824,-1000.0,0.00014374,2]
[401381562,1768169440833,-244.0,0.00014374,2]
[401381563,1768169440843,-5000.0,0.0001451,2]
[401381564,1768169440852,-900.0,0.00014768,2]
[401381565,1768169440861,-1157.07022264,0.00014795,2]
[401381566,1768169440871,-1015.29707634,0.00014795,2]
[401381567,1768169440880,-1589.88646751,0.00014795,2]
[401381568,1768169440890,-1500.0,0.00014795,2]
[401381569,1768169440900,-1500.0,0.00014795,2]
[401381570,1768169440909,-1000.0,0.00014795,2]
[401381571,1768169440918,-839.58703801,0.00014795,2]
[401381572,1768169440928,-597.05305078,0.00014795,2]
[401381573,1768169440937,-1500.0,0.00014795,2]
[401381574,1768169440946,-499.24471264,0.00014795,2]
[401381575,1768169440956,-1476.33364724,0.00014795,2]
[401381576,1768169440966,-500.79965419,0.00014795,2]
[401381577,1768169440975,-663.68911449,0.00014795,2]
[401381578,1768169440985,-1500.0,0.00014795,2]
[401381579,1768169440994,-1500.0,0.00014795,2]
[401381580,1768169441004,-1002.98816345,0.00014795,2]
[401381581,1768169441014,-1236.28209818,0.00014795,2]
[401381582,1768169441023,-304.84096496,0.00014795,2]
[401381583,1768169441032,-1500.0,0.00014795,2]
[401381584,1768169441042,-1500.0,0.00014795,2]
[401381586,1768169441051,-288.05151213,0.00014795,2]
[401381588,1768169441060,-1500.0,0.00014795,2]
[401381590,1768169441069,-1304.72135436,0.00014795,2]
[401381592,1768169441078,-1500.0,0.00014795,2]
[401381594,1768169441088,-1500.0,0.00014795,2]
[401381596,1768169441097,-500.0,0.00014795,2]
[401381598,1768169441107,-1500.0,0.00014795,2]
[401381600,1768169441116,-500.0,0.00014795,2]
[401381602,1768169441125,-1525.59078617,0.00014795,2]
[401381604,1768169441134,-1500.0,0.00014795,2]
[401381606,1768169441144,-1500.0,0.00014795,2]
[401381608,1768169441153,-1007.57819343,0.00014795,2]
[401381610,1768169441163,-1500.0,0.00014795,2]
[401381612,1768169441172,-2000.0,0.00014916,2]
[401381614,1768169441181,-2000.0,0.00014916,2]
[401381616,1768169441190,-1374.68815725,0.00014916,2]
[401381618,1768169441199,-2000.0,0.00014916,2]
[401381620,1768169441208,-2000.0,0.00014916,2]
[401381622,1768169441217,-1282.0683631,0.00014916,2]
[401381624,1768169441227,-2000.0,0.00014916,2]
[401381626,1768169441235,-374.83618263,0.00014916,2]
[401381628,1768169441244,-502.33157316,0.00014916,2]
[401381630,1768169441255,-2000.0,0.00014916,2]
[401381632,1768169441265,-2000.0,0.00014916,2]
[401381634,1768169441275,-2000.0,0.00014916,2]
[401381636,1768169441285,-492.76745807,0.00014916,2]
[401381638,1768169441294,-2000.0,0.00014916,2]
[401381640,1768169441304,-2000.0,0.00014916,2]
[401381642,1768169441313,-100000.0,0.0001499,2]
[401381644,1768169441326,-1000.0,0.00015,2]
[401381646,1768169441335,-800.0,0.00015068,2]
[401381648,1768169441345,-151.0,0.000152,2]
[401381650,1768169441355,-4898.92616056,0.00015242,2]
[401381652,1768169441364,-526.09705118,0.00015281,2]
[401381654,1768169441373,-1200.0,0.00015316,2]
[401381656,1768169441383,-2000.0,0.00015342,2]
[401381658,1768169441392,-2000.0,0.00015342,2]
[401381659,1768169441402,-2143.18421046,0.00015342,2]
[401381661,1768169441411,-1019.50340863,0.00015342,2]
[401381663,1768169441421,-1640.95571878,0.00015342,2]
[401381665,1768169441430,-2000.0,0.00015342,2]
[401381667,1768169441439,-2000.0,0.00015342,2]
[401381669,1768169441449,-648.74912763,0.00015342,2]
[401381671,1768169441459,-926.89565163,0.00015342,2]
[401381673,1768169441469,-500.0,0.00015342,2]
[401381675,1768169441479,-2000.0,0.00015342,2]
[401381677,1768169441488,-2000.0,0.00015342,2]
[401381679,1768169441498,-2000.0,0.00015342,2]
[401381681,1768169441507,-2000.0,0.00015342,2]
[401381683,1768169441516,-151.0,0.000154,2]
[401381685,1768169441525,-2500.0,0.00015464,2]
[401381686,1768169441534,-1506.66545063,0.00015464,2]
[401381688,1768169441545,-500.0,0.00015464,2]
[401381690,1768169441555,-2500.0,0.00015464,2]
[401381692,1768169441565,-2500.0,0.00015464,2]
[401381694,1768169441574,-897.40421659,0.00015464,2]
[401381697,1768169441584,-2500.0,0.00015464,2]
[401381699,1768169441598,-2500.0,0.00015464,2]
[401381700,1768169441608,-2500.0,0.00015464,2]
[401381702,1768169441618,-2500.0,0.00015464,2]
[401381704,1768169441627,-154.39,0.000155,2]
[401381706,1768169441639,-1000.0,0.00015811,2]
[401381708,1768169441649,-492.0,0.00015811,2]
[401381711,1768169441659,-1500.0,0.00015864,2]
[401381712,1768169441671,-2500.0,0.0001589,2]
[401381723,1768169441681,-2500.0,0.0001589,2]
[401381725,1768169441778,-379.03607709,0.0001589,2]
[401381727,1768169441787,-2500.0,0.0001589,2]
[401381729,1768169441797,-2500.0,0.0001589,2]
[401381731,1768169441806,-2500.0,0.0001589,2]
[401381733,1768169441816,-2500.0,0.0001589,2]
[401381735,1768169441826,-2500.0,0.0001589,2]
[401381737,1768169441835,-3000.0,0.00016,2]
[401381739,1768169441844,-3000.0,0.0001601,2]
[401381741,1768169441854,-3000.0,0.00016012,2]
[401381743,1768169441864,-3000.0,0.00016012,2]
[401381745,1768169441874,-3000.0,0.00016012,2]
[401381747,1768169441884,-3000.0,0.00016012,2]
[401381749,1768169441893,-3000.0,0.00016012,2]
[401381751,1768169441903,-3000.0,0.00016012,2]
[401381753,1768169441913,-3000.0,0.00016012,2]
[401381755,1768169441922,-3000.0,0.0001602,2]
[401381757,1768169441931,-3000.0,0.0001603,2]
[401381759,1768169441940,-3000.0,0.0001604,2]
[401381761,1768169441949,-3000.0,0.0001605,2]
[401381763,1768169441960,-3000.0,0.0001606,2]
[401381765,1768169441969,-3000.0,0.0001607,2]
[401381767,1768169441979,-3000.0,0.0001608,2]
[401381769,1768169441990,-3000.0,0.0001609,2]
[401381771,1768169441999,-3000.0,0.000161,2]
[401381773,1768169442009,-3000.0,0.0001611,2]
[401381775,1768169442020,-3000.0,0.0001612,2]
[401381777,1768169442029,-3000.0,0.0001613,2]
[401381779,1768169442039,-3000.0,0.0001614,2]
[401381781,1768169442049,-3000.0,0.0001615,2]
[401381782,1768169442058,-3000.0,0.0001616,2]
[401381784,1768169442069,-1600.0,0.00016164,2]
[401381786,1768169442078,-3000.0,0.0001617,2]
[401381788,1768169442087,-3000.0,0.0001618,2]
[401381790,1768169442097,-3000.0,0.0001619,2]
[401381792,1768169442106,-3000.0,0.000162,2]
[401381794,1768169442115,-3000.0,0.0001621,2]
[401381796,1768169442125,-3000.0,0.0001622,2]
[401381798,1768169442135,-3000.0,0.0001623,2]
[401381800,1768169442145,-3000.0,0.0001624,2]
[401381802,1768169442154,-3000.0,0.0001625,2]
[401381804,1768169442164,-4303.675713,0.0001626,2]
[401381806,1768169442173,-1800.0,0.00016412,2]
[401381808,1768169442183,-259.948193,0.00016438,2]
[401381810,1768169442193,-259.948193,0.00016438,2]
[401381811,1768169442202,-259.948193,0.00016438,2]
[401381813,1768169442211,-259.948193,0.00016438,2]
[401381815,1768169442221,-1018.853921,0.00016438,2]
[401381817,1768169442230,-1018.853921,0.00016438,2]
[401381819,1768169442240,-1018.853921,0.00016438,2]
[401381821,1768169442250,-1018.853921,0.00016438,2]
[401381823,1768169442259,-151.0,0.00016438,2]
[401381825,1768169442269,-500.0,0.00016438,2]
[401381827,1768169442277,-500.0,0.00016438,2]
[401381829,1768169442286,-500.0,0.00016438,2]
[401381831,1768169442295,-423.20869213,0.00016438,2]
[401381833,1768169442304,-500.0,0.00016438,2]
[401381835,1768169442313,-500.0,0.00016438,2]
[401381837,1768169442322,-164.19129262,0.00016438,2]
[401381838,1768169442331,-2204.98184922,0.00016438,2]
[401381840,1768169442340,-1005.31139958,0.00016438,2]
[401381842,1768169442349,-3000.0,0.00016438,2]
[401381844,1768169442359,-1770.74684169,0.00016438,2]
[401381846,1768169442369,-3000.0,0.00016438,2]
[401381848,1768169442379,-3000.0,0.00016438,2]
[401381850,1768169442389,-3000.0,0.00016438,2]
[401381852,1768169442398,-260.15865923,0.00016438,2]
[401381854,1768169442407,-200.0,0.00016473,2]
[401381856,1768169442416,-151.0,0.000165,2]
[401381858,1768169442426,-3020.77887688,0.0001656,2]
[401381860,1768169442435,-3500.0,0.0001656,2]
[401381863,1768169442443,-3500.0,0.0001656,2]
[401381867,1768169442454,-3500.0,0.0001656,2]
[401381870,1768169442463,-3500.0,0.0001656,2]
[401381874,1768169442472,-3500.0,0.0001656,2]
[401381877,1768169442482,-3500.0,0.0001656,2]
[401381879,1768169442491,-151.0,0.000166,2]
[401381881,1768169442500,-2100.0,0.0001696,2]
[401381882,1768169442509,-3500.0,0.00016986,2]
[401381885,1768169442520,-3500.0,0.00016986,2]
[401381886,1768169442529,-3500.0,0.00016986,2]
[401381888,1768169442539,-3500.0,0.00016986,2]
[401381890,1768169442548,-4000.0,0.00017108,2]
[401381892,1768169442558,-4000.0,0.00017108,2]
[401381894,1768169442567,-4000.0,0.00017108,2]
[401381896,1768169442577,-4000.0,0.00017108,2]
[401381898,1768169442588,-4000.0,0.00017108,2]
[401381900,1768169442600,-2500.0,0.00017108,2]
[401381902,1768169442610,-2400.0,0.0001726,2]
[401381904,1768169442619,-587.58891431,0.00017281,2]
[401381906,1768169442628,-1000.0,0.00017392,2]
[401381908,1768169442637,-791.0,0.00017392,2]
[401381910,1768169442647,-5000.0,0.00017412,2]
[401381912,1768169442656,-396.005915,0.00017412,2]